Cogmind - Beta 11.1 @@@ ROGUE MODE // 2022.09.05 @ 03:10:43 Player: Okkudo Result: Destroyed by Y-45 Defender with Beam Rifle Performance ------------- Evolutions (2) 1000 Regions Visited (4) 800 Robots Destroyed (63) 315 Value Destroyed (1508) 1508 Prototype IDs (4) 80 Alien Tech Used (0) 0 Bonus (53) 53 TOTAL SCORE: 3756 Bonus ------- High Alert Combat Kills 14 Follower Combat Kills 39 Cogmind --------- Core Integrity 0/550 Matter 259/300 Energy 280/280 System Corruption 1% Temperature Cool (9) Movement Walking (190) Ox1 Location -8/Materials Parts ------- > --- POWER (1) -------- Heavy Ion Engine > --- PROPULSION (2) --- Aluminum Leg > --- UTILITY (6) ------ Medium Storage Unit Signal Interpreter Improved Terrain Scan Processor > --- WEAPON (2) ------- (None) > --- INVENTORY (10) --- Improved Heat Sink Improved Terrain Scanner Heavy EM Shotgun Heavy Flail Heavy Flail Peak State ------------ > --- POWER ------------ Cooled Ion Engine > --- PROPULSION ------- Aluminum Leg Carbon-fiber Leg > --- UTILITY ---------- Medium Storage Unit Improved Sensor Array Signal Interpreter Improved Terrain Scanner Improved Terrain Scan Processor Weapon Shielding > --- WEAPON ----------- Beamcaster Assault Cannon > --- INVENTORY -------- Heavy Ion Engine Aluminum Leg Aluminum Leg Medium Storage Unit Improved Terrain Scanner Heavy EM Shotgun Small Laser Heavy Flail Heavy Flail [Rating: 29] Favorites ----------- Power Cooled Ion Engine Engine Cooled Ion Engine Propulsion Aluminum Leg Leg Aluminum Leg Utility Medium Storage Unit Device Terrain Scanner Storage Medium Storage Unit Processor Signal Interpreter Protection Weapon Shielding Weapon Flail Energy Gun Beamcaster Ballistic Gun Light Assault Rifle Ballistic Cannon Assault Cannon Special Weapon Mining Laser Impact Weapon Flail Build | -11 -10 -9 -9 -8 ------- Run | Scr Mat Mat Min Mat Slots Evolved 4 | . . 2 . 2 Power . | . . . . . Propulsion . | . . . . . Utility 4 | . . 2 . 2 Weapon . | . . . . . Parts Attached 55 | 6 9 17 10 13 Power 8 | 1 1 5 . 1 Engine 8 | 1 1 5 . 1 Core . | . . . . . Reactor . | . . . . . Propulsion 16 | 2 6 4 2 2 Treads . | . . . . . Leg 16 | 2 6 4 2 2 Wheel . | . . . . . Hover . | . . . . . Flight . | . . . . . Utility 14 | 1 1 5 3 4 Device 4 | . 1 1 1 1 Storage 5 | 1 . 3 . 1 Processor 4 | . . 1 2 1 Hackware . | . . . . . Protection 1 | . . . . 1 Artifact . | . . . . . Weapon 17 | 2 1 3 5 6 Energy Gun 7 | . 1 1 2 3 Energy Cannon . | . . . . . Ballistic Gun 4 | 2 . 2 . . Ballistic Cannon 1 | . . . . 1 Launcher . | . . . . . Special Weapon 2 | . . . 2 . Impact Weapon 3 | . . . 1 2 Slashing Weapon . | . . . . . Piercing Weapon . | . . . . . Special Melee Weapon . | . . . . . Unidentified Prototypes 4 | . . 3 . 1 Parts Lost 22 | . 2 6 3 11 Power 3 | . . 2 . 1 Propulsion 5 | . . 2 . 3 Utility 6 | . 1 . 1 4 Weapon 8 | . 1 2 2 3 Highest Loss Streak 8 | . 1 3 2 8 To Critical Strikes . | . . . . . Average Slot Usage (%) 90 | . 85 92 96 73 Engine 10 | . 14 7 11 6 Leg 20 | . 28 21 22 11 Device 9 | . 1 11 11 8 Storage 12 | . 14 21 11 7 Processor 15 | . . 11 19 18 Energy Gun 6 | . 5 3 8 4 Ballistic Gun 5 | . 21 16 1 . Impact Weapon 6 | . . . 9 7 Naked Turns . | . . . . . Heaviest Build 31 | 13 14 24 26 31 Greatest Support 25 | 20 20 20 25 25 Greatest Overweight (x) 8 | 1 . 1 1 8 Average Overweight (x) . | . . . . 1 Largest Inventory Capacity 10 | 8 8 10 10 10 Average Capacity 9 | 7 8 9 10 9 Most Carried 9 | 5 7 9 9 9 Average Carried 6 | 2 4 6 6 7 Final Capacity 10 | 8 8 10 10 10 Final Carried 7 | 2 7 6 7 5 Class Distribution -------------------- 63% | Mutant 31% | Scavenger-Mutant Dominant Class ---------------- Mutant | -10/Materials Mutant | -9/Materials Mutant | -9/Mines Mutant | -8/Materials Resources | -11 -10 -9 -9 -8 ----------- Run | Scr Mat Mat Min Mat Matter Collected 1161 | 276 272 281 143 189 Remotely . | . . . . . Salvage Created 2253 | 90 538 605 449 571 Parts 119 | 4 36 47 13 19 Haulers Intercepted 5 | . 1 1 . 3 Recyclers Shooed 3 | 1 1 . 1 . Parts Field Recycled . | . . . . . Retrieved Matter . | . . . . . Parts Self-Destructed . | . . . . . Prevented . | . . . . . Kills | -11 -10 -9 -9 -8 ------- Run | Scr Mat Mat Min Mat Combat Hostiles Destroyed 48 | . 12 19 9 8 Melee 1 | . . . 1 . Guns 41 | . 12 19 4 6 Cannons 3 | . . . 1 2 Classes Destroyed 9 | 1 3 2 3 . Worker 2 | . . . 2 . Tunneler 2 | . . . 2 . Hauler 5 | . 1 1 . 3 Recycler 5 | 1 . 1 2 1 Watcher 2 | . 1 1 . . Swarmer 15 | . . 13 2 . Grunt 27 | . 12 3 6 6 Sentry 5 | . . 3 . 2 Assembled 1 | . . . 1 . Best Kill Streak 6 | 1 5 5 3 6 Combat Bots Only 5 | . 4 5 3 5 Max Kills in Single Turn 1 | 1 1 1 1 1 Gunslinging . | . . . . . Exploded . | . . . . . Melee 1 | . . . 1 . Uniques/NPCs Destroyed . | . . . . . Combat | -11 -10 -9 -9 -8 -------- Run | Scr Mat Mat Min Mat Damage Taken 3641 | . 683 675 659 1624 Core 984 | . 99 112 221 552 Absorbed by Shields . | . . . . . Redirected to Shielding 50 | . . . . 50 Core Remaining (%) 58 | 100 60 . 16 . Volleys Fired 193 | 5 52 65 23 48 Largest 2 | 2 2 2 1 2 Hottest 119 | 40 60 60 100 119 Shots Fired 304 | 6 104 112 24 58 Gun 269 | 6 104 112 18 29 Cannon 29 | . . . . 29 Launcher . | . . . . . Special 6 | . . . 6 . Kinetic 221 | 6 83 103 . 29 Thermal 76 | . 21 9 24 22 Explosive . | . . . . . Electromagnetic 7 | . . . . 7 Robot Hit Streak 18 | 3 11 17 12 18 Robot Miss Streak 5 | 1 2 5 4 5 Penetration Max . | . . . . . Secondary Targets . | . . . . . Shots Hit Robots 221 | 4 75 75 24 43 Core Hits 91 | 2 29 32 6 22 Critical Kills . | . . . . . Critical Parts Destroyed 8 | . . . 6 2 Critical Strikes 10 | . . . 7 3 Burn 2 | . . . 1 1 Smash 8 | . . . 6 2 Melee Attacks 31 | . . . 21 10 Impact 31 | . . . 21 10 Slashing . | . . . . . Piercing . | . . . . . Sneak Attacks 10 | . . . 9 1 Combat Hostiles . | . . . . . Follow-up Attacks 2 | . . . . 2 Damage Inflicted 3775 | 48 780 834 1027 1086 Guns 2202 | 48 772 834 147 401 Cannons 339 | . . . . 339 Explosions 49 | . . . . 49 Melee 1151 | . . . 856 295 Ramming 10 | . 8 . . 2 Kinetic 1761 | 48 593 781 . 339 Thermal 697 | . 179 53 171 294 Explosive . | . . . . . Electromagnetic 156 | . . . . 156 Impact 1151 | . . . 856 295 Slashing . | . . . . . Piercing . | . . . . . Highest Corruption 1 | . . . 1 1 Average Corruption 1 | . . . 1 1 Corruption Purged . | . . . . . Corruption Blocked . | . . . . . Effects 13 | . . . 12 1 Message Errors 2 | . . . 2 . Matter Fused 6 | . . . 5 1 Heat Flow Errors 1 | . . . 1 . Energy Discharges 1 | . . . 1 . Parts Rejected 1 | . . . 1 . Data Loss (minor) 1 | . . . 1 . Misfires 1 | . . . 1 . Overload Shots . | . . . . . Overflow Damage 682 | . . . 520 162 Projectiles 21 | . . . . 21 Explosions . | . . . . . Melee 661 | . . . 520 141 Knockbacks 11 | . . . 4 7 Impact 6 | . . . 4 2 Kinetic 5 | . . . . 5 Secondary . | . . . . . Self-Inflicted Damage 40 | . . . . 40 Shots 1 | . . . . 1 Rammed . | . . . . . Targets Rammed 3 | . 2 . . 1 Kicked 3 | . 2 . . 1 Crushed . | . . . . . Highest Temperature 279 | . 138 28 261 279 Average Temperature 59 | . 47 9 64 90 Received Heat Transfer 1311 | . 375 117 162 657 Siege Activations . | . . . . . Robots Corrupted . | . . . . . Combat Hostiles . | . . . . . Parts Fried 7 | . . . 7 . Impact Corruptions 25 | . . . 21 4 Robots Melted . | . . . . . Combat Hostiles . | . . . . . Parts Melted 1 | . . . . 1 Heat Transferred 1592 | . 400 125 409 658 Parts Sabotaged . | . . . . . Parts Stolen . | . . . . . Parts Stripped . | . . . . . Power Chain Reactions 1 | . . . . 1 Missiles Intercepted . | . . . . . Alert | -11 -10 -9 -9 -8 ------- Run | Scr Mat Mat Min Mat Peak Influence 487 | 5 305 487 199 255 Initial 147 | . 3 61 147 . Average 104 | 1 149 265 65 67 Maximum Alert Level 2 | . 1 2 . 1 Low Security (%) 86 | 100 76 37 100 89 Level 1 11 | . 23 47 . 10 Level 2 2 | . . 14 . . Level 3 . | . . . . . Level 4 . | . . . . . Level 5 . | . . . . . High Security . | . . . . . Max Security . | . . . . . Squads Dispatched 6 | . 3 1 . 2 Investigation 3 | . 2 . . 1 Extermination . | . . . . . Reinforcement 3 | . 1 1 . 1 Assault . | . . . . . Garrison . | . . . . . Intercept . | . . . . . Searches Triggered . | . . . . . Construction Impeded . | . . . . . Haulers Reinforced . | . . . . . Active Scanning Responses . | . . . . . Cargo Convoy Interrupts . | . . . . . Stealth | -11 -10 -9 -9 -8 --------- Run | Scr Mat Mat Min Mat Distress Signals 3 | . 2 . . 1 Communications Jammed . | . . . . . Distress Signals . | . . . . . Times Spotted 74 | . 18 21 14 21 Peak Tracking Total 7 | . 6 4 3 7 Tactical Retreats 6 | . . 2 2 2 Traps | -11 -10 -9 -9 -8 ------- Run | Scr Mat Mat Min Mat Traps Triggered 3 | . 1 1 . 1 Indirectly . | . . . . . Trap Hack Attempts . | . . . . . Triggered . | . . . . . Disarmed . | . . . . . Reprogrammed . | . . . . . Reused . | . . . . . Traps Extracted . | . . . . . Installed . | . . . . . Triggered . | . . . . . Machines | -11 -10 -9 -9 -8 ---------- Run | Scr Mat Mat Min Mat Machines Disabled 2 | . 1 . . 1 Max in Single Turn 1 | . 1 . . 1 Machines Sabotaged . | . . . . . Garrisons Compromised . | . . . . . Overloaded Fab Kills . | . . . . . Hacking | -11 -10 -9 -9 -8 --------- Run | Scr Mat Mat Min Mat Machines Accessed 6 | . 2 1 . 3 Terminals 6 | . 2 1 . 3 Fabricators . | . . . . . Repair Stations . | . . . . . Recycling Units . | . . . . . Scanalyzers . | . . . . . Garrison Access . | . . . . . Total Hacks 22 | . 7 3 . 12 Successful 14 | . 3 2 . 9 Failed 8 | . 4 1 . 3 Catastrophic . | . . . . . Database Lockouts . | . . . . . Manual 9 | . 1 2 . 6 Terminals 22 | . 7 3 . 12 Fabricators . | . . . . . Repair Stations . | . . . . . Recycling Units . | . . . . . Scanalyzers . | . . . . . Garrison Access . | . . . . . Terminal Hacks 10 | . 2 1 . 7 Record 2 | . . 1 . 1 Branch Access Points 1 | . . . . 1 Terminal Index 1 | . . . . 1 Alert Level 1 | . . . . 1 Locate Traps 1 | . . . . 1 Zone Layout 4 | . 2 . . 2 Fabricator Hacks . | . . . . . Repair Station Hacks . | . . . . . Recycling Unit Hacks . | . . . . . Scanalyzer . | . . . . . Garrison Access Hacks . | . . . . . Unauthorized Hacks 4 | . 1 1 . 2 Terminals 4 | . 1 1 . 2 Botnet 4 | . 1 1 . 2 Fabricators . | . . . . . Repair Stations . | . . . . . Recycling Units . | . . . . . Scanalyzers . | . . . . . Garrison Access . | . . . . . Data Cores Recovered . | . . . . . Used . | . . . . . Hacking Detections 5 | . 2 1 . 2 Full Trace Events 3 | . 2 . . 1 Feedback Events . | . . . . . Feedback Blocked . | . . . . . Robot Schematics Acquired . | . . . . . Robots Built . | . . . . . Authchips . | . . . . . Time . | . . . . . Total Robot Build Rating . | . . . . . Part Schematics Acquired . | . . . . . Parts Built . | . . . . . Authchips . | . . . . . Time . | . . . . . Total Part Build Rating . | . . . . . Parts Repaired . | . . . . . Time . | . . . . . Parts Recycled . | . . . . . Recycled Matter . | . . . . . Retrieved Matter . | . . . . . Retrieved Components . | . . . . . Parts Scanalyzed . | . . . . . Part Schematics Acquired . | . . . . . Parts Damaged . | . . . . . Bothacking | -11 -10 -9 -9 -8 ------------ Run | Scr Mat Mat Min Mat Used RIF Installer . | . . . . . Robots Hacked . | . . . . . Non-combat . | . . . . . Combat . | . . . . . Robot Hacks Applied . | . . . . . Relay Couplers Released . | . . . . . Fabnet Peak Effective % . | . . . . . Robots Rewired . | . . . . . Allies Hacked . | . . . . . Hacks Repelled . | . . . . . Allies | -11 -10 -9 -9 -8 -------- Run | Scr Mat Mat Min Mat Total Allies 2 | . . . 2 . Largest Group 2 | . . . 2 . Highest-Rated Group 43 | . . . 43 . Highest-Rated Ally 31 | . . . 31 . Total Orders . | . . . . . Ally Attacks 13 | . . . 13 . Total Damage 168 | . . . 168 . Kills 4 | . . . 4 . Allies Corrupted . | . . . . . Allies Melted . | . . . . . Intel | -11 -10 -9 -9 -8 ------- Run | Scr Mat Mat Min Mat Robot Analysis Total . | . . . . . Derelict Logs Recovered 1 | . . . 1 . Drone Launches . | . . . . . Drone Recoveries . | . . . . . Exploration | -11 -10 -9 -9 -8 ------------- Run | Scr Mat Mat Min Mat Turns Passed 3814 | 63 479 543 2106 623 Spaces Moved 1758 | 37 237 246 1019 219 Core 58 | 14 . . . 44 Treads . | . . . . . Legs 1700 | 23 237 246 1019 175 Wheels . | . . . . . Hover . | . . . . . Flight . | . . . . . Fastest Speed 50 | 50 120 120 120 120 Average Speed 172 | 104 120 127 189 214 Slowest Speed 450 | 190 120 190 190 450 Overloaded Moves . | . . . . . Propulsion Burnouts . | . . . . . Robots Hopped . | . . . . . Cave-ins Triggered 1 | . . . 1 . Exploration Rate (%) 37 | 3 39 26 97 23 Regions Visited 4 Branch Regions 1 Pre-discovered Areas . | . . . . . Known Exits Taken 1 | . . . 1 . Unknown Exits Taken 3 | 1 1 1 . . Scrap Searched 3 | . . . 3 . Spaces Dug 1 | . . . 1 . Terrain Destroyed 14 | . . . 2 12 Melee . | . . . . . Projectile 7 | . . . 2 5 AOE 7 | . . . . 7 Terrain Rammed . | . . . . . Walls Destroyed . | . . . . . Machines Disabled . | . . . . . Actions | -11 -10 -9 -9 -8 --------- Run | Scr Mat Mat Min Mat Total 2199 | 57 337 375 1126 304 Wait 79 | . 17 24 38 . Move 1754 | 36 236 245 1018 219 Hop . | . . . . . Pick Up 60 | 9 14 15 11 11 Fast Attach . | . . . . . Attach 35 | 6 2 10 6 11 Detach 1 | . . 1 . . Swap 20 | . 7 7 4 2 Drop 25 | 1 7 8 5 4 Fire 193 | 5 52 65 23 48 Melee 29 | . . . 21 8 Ram . | . . . . . Kick 3 | . 2 . . 1 Crush . | . . . . . Escape Stasis . | . . . . . Rewire . | . . . . . Trap . | . . . . . Miscellaneous . | . . . . . Route ------- -11/Scrapyard -10/Materials (discovered 2 exits: *Mat / [*Min]) -9/Materials -9/Mines (discovered 2 exits: *Mat x2) -8/Materials (discovered 1 exit: Sto) History --------- Turn | Location | Event 12 | -11/Scrapyard | Discovered new exit (range 15) 64 | -11/Scrapyard | Entered Materials 304 | -10/Materials | Build established: Mutant 397 | -10/Materials | Discovered new exit (range 8) 428 | -10/Materials | Discovered new exit (range 14) 543 | -10/Materials | Entered another Materials area 543 | -9/Materials | Evolved 2 slots: Utility x2 961 | -9/Materials | Discovered new exit (range 11) 1047 | -9/Materials | Lost 3 parts (1p1n1w) 1086 | -9/Materials | Entered Mines 1115 | -9/Mines | Learned Materials garrison access intel 1192 | -9/Mines | Excavation squad dispatched 1192 | -9/Mines | A large section of the Mines collapsed 1212 | -9/Mines | Crushed by falling debris 1212 | -9/Mines | Core integrity fell below 50% 1339 | -9/Mines | Discovered new exit (range 5) 1668 | -9/Mines | Core integrity fell below 20% 2005 | -9/Mines | Discovered new exit (range 8) 2018 | -9/Mines | Identified exit to Materials 2561 | -9/Mines | Build established: Scavenger-Mutant 3192 | -9/Mines | Entered Materials 3192 | -8/Materials | Evolved 2 slots: Utility x2 3193 | -8/Materials | Loaded intel: 1 garrison access location 3353 | -8/Materials | Identified exit to Storage 3618 | -8/Materials | Lost 8 parts (1p2n3u2w) 3649 | -8/Materials | Core integrity fell below 50% 3713 | -8/Materials | Core integrity fell below 20% 3775 | -8/Materials | Lost 3 parts (1n1u1w) 3808 | -8/Materials | Build established: Mutant 3815 | -8/Materials | Destroyed by Y-45 Defender with Beam Rifle Last Messages --------------- 03778_ U-05 Engineer builds a Wall. 03778_ U-05 Engineer lays Concrete. 03778_ Triggered Blade Trap. 03778_ Massive razor-sharp blades shoot up from within the floor. 03778_ Hvy. Flail severed. 03778_ Hvy. EM Shotgun severed. 03779_ R-06 Scavenger collects Particle Gun. 03781_ Kicked U-05 Engineer. 03782_ R-06 Scavenger collects Corrupted Hvy. Laser. 03783_ U-05 Engineer lays Concrete. 03785_ Acquired Hvy. EM Shotgun. 03788_ Acquired Hvy. Flail. 03791_ Acquired 4 matter. 03794_ R-06 Scavenger inserts Seismic Detector into recycling unit. 03797_ K-01 Serf collects debris. 03801_ O-16 Technician: "IFF HANDSHAKE FAILED. SECURING TERMINAL." 03803_ K-01 Serf collects debris. 03807_ R-06 Scavenger collects Particle Gun. 03808_ ALERT: Hostiles spotted, dispatching reinforcements to Terminal M004. 03810_ K-01 Serf collects debris. Map ----- +----------------------------------------------------+ | ?????????? #?????????????????"G"????? | | ?????????? #??????????????????"?????? | | ?????##### #??##????????????????????? | | ? ???? #? ?????????????????????? | | ????#?# # ??????????????????????? | | ?????# # ???????????????????????? | | ###???# +????????????????????????? | | #??## #????????????????????????? | | ##??# #????????????????????????? | | ##?## #????????????????????????? | | #???# #????????????????????????? | | ##### ########?????????????????? | | + ??????????? | | ######## #########????????????????? | | #??????# ##! #????????????????? | | ##?????# ## +????????????????? | | ###??????#]## #????????????????? | | ?#########[## #????????????????? | | ???# !#%##%! #????????????????? | | #?## """=#[##?! ?????????????????? | | ?#"" """ #%#####+############## #???? | | ?#"Y "]%%/ =]] #???? | | ?#"" """%#[### ####??????? | | #?## """=#%### """" #?????????? | | ?#?# #]#?# """"" #?????????? | | ##########=#?# """"" @#?????????? | | ?????????# #?# """"" [[#?????????? | | ##???????# #?# """""uw[ #?????????? | | ?##??????# #?# """"" #????????? | | ?##??????# #?# """"" #????????? | | ?????????# #?# +????????? | | ??#??????# #?# ! #????????? | | ?????????#+#?###########Y #????????? | | ?#??????? ??????????? u ????????? | | ????????? ??????????? ????????? | | ?#???????"" ??????????? +???????? | | #????????"" ??????????? #???????? | | ?????????"" ??????????? k #???????? | | ?#????????? ??????????### ###???????? | | ??????????? ????????????? ??????????? | | ???#??????? ????????????? ??????????? | | ??##?#??????????????????????????????? | | #?##????????????????????????????????? | | ?#??????????????????????????????????? | | ?#??????????????????????????????????? | | ??#?#???????????????????????????????? | | ????????????????????????????????????? | | ????# ??????????????????????????????? | | ?#??????????????????????????????????? | | ??????#?????????????????????????????? | +----------------------------------------------------+ Best States ------------- Heat Dissipation 35 Energy Generation 14 Energy Capacity 280 Matter Stores 350 Matter Capacity 400 Sight Range 16 Robot Scan Range 15 Terrain Scan Range 16 Terrain Scan Density 110 Weapon Shielding 33 Evasion (%) 55 Targeting Accuracy 5 Item Schematics ----------------- None Robot Schematics ------------------ None Fabricated ------------ Nothing Alien Tech Used ----------------- None Achievements -------------- None Challenges ------------ None Game ------ Seed EfficiencySegregatorAnalyzer Manual? 0 Play Time 00:35:32 Cumulative 41.8 hours Start 2022.09.05 @ 02:35:58 End 2022.09.05 @ 03:10:43 Sessions 1 Manual Loads 0 Difficulty Rogue Special Mode None Game No. 97 Rogue 97 Adventurer 0 Explorer 0 Win Type - Total 0 Types 0/0/0/0/0/0/0/0/0 Lore% 26 Gallery% 25 Achievement% 23 Wizard Run 0 Options --------- ASCII 0 Keyboard 0 Movement Numpad Keybinds 0 Fullscreen 1 Font 12/Smallcaps Map View 83x54 Tactical HUD 1 Map Filters NONE Filters NONE Steam 1 RUN: 4c87059d-833c-4e14-8017-d9d7c6c163f4